{"text_format":"1","workbook":"xlsx","n_sheets":16,"sheets":["Содержание","Т 1","Т 2","Т 3","Т 4","Т 5","Т 6","Т 7","Т 8","Т 9","Т 10","Т 11","Т 12","Т13","Т14","Итоговый"],"not_rendered":{"charts":0,"images":47,"macros":1,"external_links":0,"defined_names":0,"comments":0,"pivot_tables":0},"unopened":[],"bounds":{"document_bytes":16777216,"sheet_cells":100000,"rows_first":2000,"rows_last":500,"rows_between":2000,"halvings":0,"cell_chars":16384,"cell_head_chars":4096},"cells_cut":0,"cells_raw":0,"read":"whole","date_system":"1900"}

{"sheet":"Содержание","index":0,"n_rows":21,"n_cols":2,"rows_kept":21,"cut":false,"hidden":false,"merged":[[0,0,0,7],[7,1,7,7],[1,1,1,7],[12,1,12,7],[13,1,13,7],[16,1,16,7],[4,1,4,7],[3,1,3,7],[5,1,5,7],[6,1,6,7],[9,1,9,7],[10,1,10,7],[11,1,11,7],[8,1,8,7]]}
["Содержание тестовых заданий для тематического и итогового контроля"]
["Тест","Тема"]
[1,"Делимость натуральных чисел"]
[2,"Сложение и вычитание обыкновенных дробей"]
[3,"Умножение обыкновенных дробей"]
[4,"Нахождение дроби от числа"]
[5,"Деление обыкновенных дробей"]
[6,"Нахождение числа по его дроби"]
[7,"Дробные выражения"]
[8,"Отношения"]
[9,"Пропорции"]
[10,"Положительные и отрицательные числа"]
[11,"Сложение и вычитание положительных и отрицательных чисел"]
[12,"Умножение и деление положительных и отрицательных чисел"]
[13,"Преобразование буквенных выражений"]
[14,"Решение уравнений"]
[15,"Итоговый тест"]
[]
[]
[]
["На главную"]

{"sheet":"Т 1","index":1,"n_rows":30,"n_cols":57,"rows_kept":30,"cut":false,"hidden":false,"merged":[[0,0,0,5],[2,1,2,5],[4,14,4,16]]}
["Тест №1. Делимость натуральных чисел",null,null,null,null,null,null,null,null,null,null,null,null,null,null,null,null,null,null,null,null,null,null,null,null,null,null,null,null,null,null,null,null,null,null,null,null,null,null,null,null,null,null,null,null,null,null,null,null,null,6,1,5327,710001,"10 и 27","2*5*7",1]
[null,null,null,null,null,null,null,null,null,null,null,null,null,null,null,null,null,null,null,null,null,null,null,null,null,null,null,null,null,null,null,null,null,null,null,null,null,null,null,null,null,null,null,null,null,null,null,null,null,null,48,20,210005,2339,"20 и 16","10*14","2*3**5*5*7*7"]
["1.","Какое число является  делителем числа 24?",null,null,null,null,"6.","Разложите число 140 на простые множители.",null,null,null,null,null,null,"Нажми кнопку, чтобы узнать результат",null,null,null,null,null,null,null,null,null,null,null,null,null,null,null,null,null,null,null,null,null,null,null,null,null,null,null,null,null,null,null,null,null,null,null,16,15,550055,110009,"15 и 12","2*2*5*7","3*7*7"]
[null,null,null,null,null,null,null,null,null,null,null,null,null,null,null,null,null,null,null,null,null,null,null,null,null,null,null,null,null,null,null,null,null,null,null,null,null,null,null,null,null,null,null,null,null,null,null,null,null,null,0,60,30010,230203,"3 и 6","2*70","2*2*3*3*3*5*5*7*7*7"]
[null,1,null,null,null,null,null,1,null,null,null,null,null,null,"Результат",null,null,null,null,null,null,null,null,null,null,null,null,null,null,null,null,null,null,null,null,null,null,null,null,null,null,null,null,null,null,null,null,null,null,null,"k 1/1","k 1/2","k 1/3","k 1/4","к 1.5","k 1.6","k 1.7"]
[null,null,null,null,null,null,null,null,null,null,null,null,null,null,null,null,null,null,null,null,null,null,null,null,null,null,null,null,null,null,null,null,null,null,null,null,null,null,null,null,null,null,null,null,null,null,null,null,null,null,1,null,null,1,null,null,211300]
["2.","Какое число является кратным числа 30?",null,null,null,null,"7.","Найдите наибольший общий делитель чисел a и b,",null,null,null,null,null,null,null,null,null,null,null,null,null,null,null,null,null,null,null,null,null,null,null,null,null,null,null,null,null,null,null,null,null,null,null,null,null,null,null,null,null,null,"3*7*7",null,null,2,null,null,101010]
[null,null,null,null,null,null,null,"если a=2*2*3*3*3*7*7, b=3*5*5*7*7*7.",null,null,null,null,null,null,null,null,null,null,null,null,null,null,null,null,null,null,null,null,null,null,null,null,null,null,null,null,null,null,null,null,null,null,null,null,null,null,null,null,null,null,"2*2*2*3*3*7*7*7*11*11",null,null,"таких значений нет",null,null,3230]
[null,4,null,null,null,null,null,null,null,null,null,null,null,null,null,null,null,null,null,null,null,null,null,null,null,null,null,null,null,null,null,null,null,null,null,null,null,null,null,null,null,null,null,null,null,null,null,null,null,null,"2*2*3*3*7*7",null,null,0,null,null,312312]
[null,null,null,null,null,null,null,2,null,null,null,null,null,null,null,null,null,null,null,null,null,null,null,null,null,null,null,null,null,null,null,null,null,null,null,null,null,null,null,null,null,null,null,null,null,null,null,null,null,null,"k 1/8",null,null,"к 1.9",null,null,"k 1.10"]
["3.","Какое число делится на 100?"]
[null,null,null,null,null,null,"8.","Найдите наименьшее общее кратное чисел a и b,",null,null,null,null,null,null,null,null,null,null,null,null,null,null,null,null,null,null,null,null,null,null,null,null,null,null,null,null,null,null,null,null,null,null,null,null,null,null,null,null,null,null,1,{"$f":"IF(B5=1,\"Верно!\",\"Неверно!\")","v":"Верно!"},{"$f":"IF(AZ12=\"Верно!\",1,0)","v":1}]
[null,4,null,null,null,null,null,"если a=2*2*2*3*7*7, b=3*3*7*7*7*11*11.",null,null,null,null,null,null,null,null,null,null,null,null,null,null,null,null,null,null,null,null,null,null,null,null,null,null,null,null,null,null,null,null,null,null,null,null,null,null,null,null,null,null,2,{"$f":"IF(B9=4,\"Верно!\",\"Неверно!\")","v":"Верно!"},{"$f":"IF(AZ13=\"Верно!\",1,0)","v":1}]
[null,null,null,null,null,null,null,null,null,null,null,null,null,null,null,null,null,null,null,null,null,null,null,null,null,null,null,null,null,null,null,null,null,null,null,null,null,null,null,null,null,null,null,null,null,null,null,null,null,null,3,{"$f":"IF(B13=4,\"Верно!\",\"Неверно!\")","v":"Верно!"},1]
["4.","Какое из чисел делится на 9?",null,null,null,null,null,3,null,null,null,null,null,null,null,null,null,null,null,null,null,null,null,null,null,null,null,null,null,null,null,null,null,null,null,null,null,null,null,null,null,null,null,null,null,null,null,null,null,null,4,{"$f":"IF(B17=1,\"Верно!\",\"Неверно!\")","v":"Верно!"},1]
[null,null,null,null,null,null,null,null,null,null,null,null,null,null,null,null,null,null,null,null,null,null,null,null,null,null,null,null,null,null,null,null,null,null,null,null,null,null,null,null,null,null,null,null,null,null,null,null,null,null,5,{"$f":"IF(B21=1,\"Верно!\",\"Неверно!\")","v":"Верно!"},1]
[null,1,null,null,null,null,"9.","При каком значении a число 19a является простым?",null,null,null,null,null,null,null,null,null,null,null,null,null,null,null,null,null,null,null,null,null,null,null,null,null,null,null,null,null,null,null,null,null,null,null,null,null,null,null,null,null,null,6,{"$f":"IF(H5=3,\"Верно!\",\"Неверно!\")","v":"Неверно!"},0]
[null,null,null,null,null,null,null,null,null,null,null,null,null,null,null,null,null,null,null,null,null,null,null,null,null,null,null,null,null,null,null,null,null,null,null,null,null,null,null,null,null,null,null,null,null,null,null,null,null,null,7,{"$f":"IF(H10=3,\"Верно!\",\"Неверно!\")","v":"Неверно!"},0]
["5.","Укажите пару взаимно простых чисел:",null,null,null,null,null,3,null,null,null,null,null,null,null,null,null,null,null,null,null,null,null,null,null,null,null,null,null,null,null,null,null,null,null,null,null,null,null,null,null,null,null,null,null,null,null,null,null,null,8,{"$f":"IF(H15=3,\"Верно!\",\"Неверно!\")","v":"Верно!"},1]
[null,null,null,null,null,null,null,null,null,null,null,null,null,null,null,null,null,null,null,null,null,null,null,null,null,null,null,null,null,null,null,null,null,null,null,null,null,null,null,null,null,null,null,null,null,null,null,null,null,null,9,{"$f":"IF(H19=1,\"Верно!\",\"Неверно!\")","v":"Неверно!"},0]
[null,1,null,null,null,null,"10.","Какое из чисел делится на 30?",null,null,null,null,null,null,null,null,null,null,null,null,null,null,null,null,null,null,null,null,null,null,null,null,null,null,null,null,null,null,null,null,null,null,null,null,null,null,null,null,null,null,10,{"$f":"IF(H23=2,\"Верно!\",\"Неверно!\")","v":"Верно!"},1]
[null,null,null,null,null,null,null,null,null,null,null,null,null,null,null,null,null,null,null,null,null,null,null,null,null,null,null,null,null,null,null,null,null,null,null,null,null,null,null,null,null,null,null,null,null,null,null,null,null,null,"Сумма",null,{"$f":"SUM(BA12:BA21)","v":7},null,{"$f":"IF(BA22=9+OR(BA22=10),\"Отлично!\")","v":false},null,{"$f":"IF(BA22>8,\"Отлично\",IF(BA22>6,\"Хорошо\",IF(BA22>4,\"Удовлетворительно\",\"Неудовлетворительно\")))","v":"Хорошо"}]
[null,null,null,null,null,null,null,2,null,null,null,null,null,null,null,null,null,null,null,null,null,null,null,null,null,null,null,null,null,null,null,null,null,null,null,null,null,null,null,null,null,null,null,null,null,null,null,null,null,null,null,null,null,null,{"$f":"IF(BA22=7+OR(BA22=8),\"Хорошо!\")","v":"Хорошо!"}]
[null,null,null,null,null,null,null,null,null,null,null,null,null,null,null,null,null,null,null,null,null,null,null,null,null,null,null,null,null,null,null,null,null,null,null,null,null,null,null,null,null,null,null,null,null,null,null,null,null,null,null,null,null,null,{"$f":"IF(BA22=5+OR(BA22=6),\"Удовлетворительно!\")","v":false}]
[null,null,null,null,null,null,null,null,null,null,null,null,null,null,null,null,null,null,null,null,null,null,null,null,null,null,null,null,null,null,null,null,null,null,null,null,null,null,null,null,null,null,null,null,null,null,null,null,null,null,null,null,null,null,{"$f":"IF(BA22<5,\"Неудовлетворительно!\")","v":false}]
[]
[]
[]
[]
[null,{"$f":"IF(BA22>8,\"Отлично\",IF(BA22>6,\"Хорошо\",IF(BA22>4,\"Удовлетворительно\",\"Неудовлетворительно\")))","v":"Хорошо"}]

{"sheet":"Т 2","index":2,"n_rows":50,"n_cols":62,"rows_kept":50,"cut":false,"hidden":false,"merged":[[0,0,0,7],[4,15,4,16]]}
["Тест 2. Сложение и вычитание обыкновенных дробей",null,null,null,null,null,null,null,null,null,null,null,null,null,null,null,null,null,null,null,null,null,null,null,null,null,null,null,null,null,null,null,null,null,null,null,null,null,null,null,null,null,null,null,null,null,null,null,null,null,null,null,2.564102564102564E-2,"11/3","1","8/30","5/9","15/27","1/5","7/14","11/30","первый"]
[null,null,null,null,null,null,null,null,null,null,null,null,null,null,null,null,null,null,null,null,null,null,null,null,null,null,null,null,null,null,null,null,null,null,null,null,null,null,null,null,null,null,null,null,null,null,null,null,null,null,null,null,5.8823529411764705E-2,"3/11","2","2/30","4/9","5/9","19/15","7/45","2/9","второй"]
["1.","Турист должен был пройти 39 км. ",null,null,null,null,null,"6.","Сократите дробь 30/54.",null,null,null,null,null,"Нажми кнопку, чтобы узнать результат",null,null,null,null,null,null,null,null,null,null,null,null,null,null,null,null,null,null,null,null,null,null,null,null,null,null,null,null,null,null,null,null,null,null,null,null,null,0.4358974358974359,"1/3","3","27/30","9/4","4/9","3/15","43/45","33/90","оба одновременно"]
[null,"В первый день он прошел 17 км. ",null,null,null,null,null,null,"Ответ дайте в виде несократимой дроби.",null,null,null,null,null,null,null,null,null,null,null,null,null,null,null,null,null,null,null,null,null,null,null,null,null,null,null,null,null,null,null,null,null,null,null,null,null,null,null,null,null,null,null,"39 /17","0,27","24","12/30","9/5","30/54","19/30","33/45","3/10","в задаче не хватает данных"]
[null,"Какую часть пути турист прошел в первый день?",null,null,null,null,null,null,null,null,null,null,null,null,null,"Результат",null,null,null,null,null,null,null,null,null,null,null,null,null,null,null,null,null,null,null,null,null,null,null,null,null,null,null,null,null,null,null,null,null,null,null,null,"t2/1","t2/2","t2/3","t2/4","t2/5","t2/6","t2/7","t2/8","t2/9","t2/10"]
[null,null,null,null,null,null,null,null,3]
[null,3]
[null,null,null,null,null,null,null,null,null,null,null,null,null,null,null,null,null,null,null,null,null,null,null,null,null,null,null,null,null,null,null,null,null,null,null,null,null,null,null,null,null,null,null,null,null,null,null,null,null,null,null,null,1,{"$f":"IF(B7=3,1,0)","v":1}]
["2.","Какое из чисел является корнем уравнения 11х=3?",null,null,null,null,null,"7.","Чему равна разность чисел 11/15 и  8/15?",null,null,null,null,null,null,null,null,null,null,null,null,null,null,null,null,null,null,null,null,null,null,null,null,null,null,null,null,null,null,null,null,null,null,null,null,null,null,null,null,null,null,null,2,{"$f":"IF(B11=2,1,0)","v":1}]
[null,null,null,null,null,null,null,null,"Ответ дайте в виде несократимой дроби.",null,null,null,null,null,null,null,null,null,null,null,null,null,null,null,null,null,null,null,null,null,null,null,null,null,null,null,null,null,null,null,null,null,null,null,null,null,null,null,null,null,null,null,3,{"$f":"IF(B16=2,1,0)","v":1}]
[null,2,null,null,null,null,null,null,null,null,null,null,null,null,null,null,null,null,null,null,null,null,null,null,null,null,null,null,null,null,null,null,null,null,null,null,null,null,null,null,null,null,null,null,null,null,null,null,null,null,null,null,4,{"$f":"IF(B20=4,1,0)","v":1}]
[null,null,null,null,null,null,null,null,1,null,null,null,null,null,null,null,null,null,null,null,null,null,null,null,null,null,null,null,null,null,null,null,null,null,null,null,null,null,null,null,null,null,null,null,null,null,null,null,null,null,null,null,5,{"$f":"IF(B25=1,1,0)","v":1}]
["3.","Какое из чисел надо поставить вместо * в равенство ",null,null,null,null,null,null,null,null,null,null,null,null,null,null,null,null,null,null,null,null,null,null,null,null,null,null,null,null,null,null,null,null,null,null,null,null,null,null,null,null,null,null,null,null,null,null,null,null,null,null,6,{"$f":"IF(I6=2,1,0)","v":0}]
[null,"3/8=*/32",", чтобы оно было верным?",null,null,null,null,"8.","Чему равна сумма чисел 5/9 и 2/5?",null,null,null,null,null,null,null,null,null,null,null,null,null,null,null,null,null,null,null,null,null,null,null,null,null,null,null,null,null,null,null,null,null,null,null,null,null,null,null,null,null,null,null,7,{"$f":"IF(I12=1,1,0)","v":1}]
[null,null,null,null,null,null,null,null,null,null,null,null,null,null,null,null,null,null,null,null,null,null,null,null,null,null,null,null,null,null,null,null,null,null,null,null,null,null,null,null,null,null,null,null,null,null,null,null,null,null,null,null,8,{"$f":"IF(I16=3,1,0)","v":1}]
[null,2,null,null,null,null,null,null,3,null,null,null,null,null,null,null,null,null,null,null,null,null,null,null,null,null,null,null,null,null,null,null,null,null,null,null,null,null,null,null,null,null,null,null,null,null,null,null,null,null,null,null,9,{"$f":"IF(I21=1,1,0)","v":1}]
[null,null,null,null,null,null,null,null,null,null,null,null,null,null,null,null,null,null,null,null,null,null,null,null,null,null,null,null,null,null,null,null,null,null,null,null,null,null,null,null,null,null,null,null,null,null,null,null,null,null,null,null,10,{"$f":"IF(I27=2,1,0)","v":1}]
["4.","Представьте 2/3 в виде дроби со знаменателем 30.",null,null,null,null,null,"9.","Чему равна разность чисел 5/6 и 7/15?",null,null,null,null,null,null,null,null,null,null,null,null,null,null,null,null,null,null,null,null,null,null,null,null,null,null,null,null,null,null,null,null,null,null,null,null,null,null,null,null,null,null,null,"Сумма",{"$f":"SUM(BB8:BB17)","v":9}]
[null,null,null,null,null,null,null,null,"Ответ дайте в виде несократимой дроби.",null,null,null,null,null,null,null,null,null,null,null,null,null,null,null,null,null,null,null,null,null,null,null,null,null,null,null,null,null,null,null,null,null,null,null,null,null,null,null,null,null,null,null,null,{"$f":"IF(BB18>8,\"Отлично!\",IF(BB18>6,\"Хорошо!\",IF(BB18>4,\"Удовлетворительно!\",\"Неудовлетворительно!!!\")))","v":"Отлично!"}]
[null,4]
[null,null,null,null,null,null,null,null,1]
["5.","Ученик выполнил 4/9 всего задания. "]
[null,"Какую часть задания ему осталось выполнить?",null,null,null,null,null,"10.","Первый экскаватор может вырыть 5 метров траншеи за 4 часа,"]
[null,null,null,null,null,null,null,null,"а второй - 7метров за 5 часов. Какой экскаватор быстрее"]
[null,1,null,null,null,null,null,null,"выроеет 1 метр траншеи?"]
[]
[null,null,null,null,null,null,null,null,2]
[]
[]
[]
[]
[]
[]
[]
[]
[]
[]
[]
[]
[]
[]
[]
[]
[]
[]
[]
[]
["Тест"]
[]
[null,{"$f":"IF(BB18>8,\"Отлично!\",IF(BB18>6,\"Хорошо!\",IF(BB18>4,\"Удовлетворительно!\",\"Неудовлетворительно!!!\")))","v":"Отлично!"}]

{"sheet":"Т 3","index":3,"n_rows":50,"n_cols":59,"rows_kept":50,"cut":false,"hidden":false,"merged":[[0,0,0,7],[1,0,1,7]]}
["Тест 3. Умножение обыкновенных дробей.",null,null,null,null,null,null,null,null,null,null,null,null,null,null,null,null,null,null,null,null,null,null,null,null,null,null,null,null,null,null,null,null,null,null,null,null,null,null,null,null,null,null,null,null,null,null,null,null,null,null,null,null,"12/64","4/25 кв.см ",null,"8  7/8","8/21","10/3"]
["Ответ должен быть дан в виде несократимой дроби. ",null,null,null,null,null,null,null,null,null,null,null,null,null,null,null,null,null,null,null,null,null,null,null,null,null,null,null,null,null,null,null,null,null,null,null,null,null,null,null,null,null,null,null,null,null,null,null,null,null,null,null,null,"12/16","2/25 кв.см",null,"6  7/8","16/21","1  10/39"]
[null,null,null,null,null,null,null,null,null,null,null,null,null,null,null,null,null,null,null,null,null,null,null,null,null,null,null,null,null,null,null,null,null,null,null,null,null,null,null,null,null,null,null,null,null,null,null,null,null,null,null,null,null,"3/64","4/5 кв.см",null,"9  3/4","360/245","3  1/3"]
["1.","Чему равно произведение 3/16 и 4?",null,null,null,null,null,null,null,null,null,null,null,null,null,null,null,null,null,null,null,null,null,null,null,null,null,null,null,null,null,null,null,null,null,null,null,null,null,null,null,null,null,null,null,null,null,null,null,null,null,null,null,"3/4","1  3/5 кв.см",null,"8  3/4","1  241/945","10/39"]
[null,null,null,null,null,null,null,null,null,null,null,null,null,null,null,null,null,null,null,null,null,null,null,null,null,null,null,null,null,null,null,null,null,null,null,null,null,null,null,null,null,null,null,null,null,null,null,null,null,null,null,null,null,"t3/1","t3/2",null,"t3/3","t3/4","t3/5"]
[null,4]
[]
["2.","Найдите площадь квадрата со стороной 2/5 см.",null,null,null,null,null,null,null,null,null,null,null,null,null,null,null,null,null,null,null,null,null,null,null,null,null,null,null,null,null,null,null,null,null,null,null,null,null,null,null,null,null,null,null,null,null,null,null,null,null,null,null,1,{"$f":"IF(B6=4,1,0)","v":1}]
[null,null,null,null,null,null,null,null,null,null,null,null,null,null,null,null,null,null,null,null,null,null,null,null,null,null,null,null,null,null,null,null,null,null,null,null,null,null,null,null,null,null,null,null,null,null,null,null,null,null,null,null,null,2,{"$f":"IF(B10=1,1,0)","v":1}]
[null,1,null,null,null,null,null,null,null,null,null,null,null,null,null,null,null,null,null,null,null,null,null,null,null,null,null,null,null,null,null,null,null,null,null,null,null,null,null,null,null,null,null,null,null,null,null,null,null,null,null,null,null,3,{"$f":"IF(B14=3,1,0)","v":0}]
[null,null,null,null,null,null,null,null,null,null,null,null,null,null,null,null,null,null,null,null,null,null,null,null,null,null,null,null,null,null,null,null,null,null,null,null,null,null,null,null,null,null,null,null,null,null,null,null,null,null,null,null,null,4,{"$f":"IF(B18=1,1,0)","v":0}]
["3.","Вычислите ",null,null,null,null,null,null,null,null,null,null,null,null,null,null,null,null,null,null,null,null,null,null,null,null,null,null,null,null,null,null,null,null,null,null,null,null,null,null,null,null,null,null,null,null,null,null,null,null,null,null,null,5,{"$f":"IF(B22=3,1,0)","v":1}]
[null,null,null,null,null,null,null,null,null,null,null,null,null,null,null,null,null,null,null,null,null,null,null,null,null,null,null,null,null,null,null,null,null,null,null,null,null,null,null,null,null,null,null,null,null,null,null,null,null,null,null,null,null,"Сумма",{"$f":"SUM(BC8:BC12)","v":3}]
[null,1,null,null,null,null,null,null,null,null,null,null,null,null,null,null,null,null,null,null,null,null,null,null,null,null,null,null,null,null,null,null,null,null,null,null,null,null,null,null,null,null,null,null,null,null,null,null,null,null,null,null,null,null,{"$f":"IF(BC13>4,\"Отлично!\",IF(BC13=4,\"Хорошо!\",IF(BC13=3,\"Удовлетворительно!\",\"Неудовлетворительно!\")))","v":"Удовлетворительно!"}]
[]
["4.","Найдите произведение"]
[]
[null,3,null,null,null,null,null,"Нажми кнопку, чтобы узнать результат"]
[]
["5.","Вычислите",null,null,null,null,null,null,"Результат"]
[]
[null,3]
[]
[]
[]
[]
[]
[]
[]
[]
[]
[]
[]
[]
[]
[]
[]
[]
[]
[]
[]
[]
[]
[]
[]
[]
[]
[]
[]
[null,{"$f":"IF(BC13>4,\"Отлично!\",IF(BC13=4,\"Хорошо!\",IF(BC13=3,\"Удовлетворительно!\",\"Неудовлетворительно!\")))","v":"Удовлетворительно!"}]

{"sheet":"Т 4","index":4,"n_rows":50,"n_cols":58,"rows_kept":50,"cut":false,"hidden":false,"merged":[[0,0,0,6],[49,1,49,3]]}
["Тест 4. Нахождение дроби от числа",null,null,null,null,null,null,null,null,null,null,null,null,null,null,null,null,null,null,null,null,null,null,null,null,null,null,null,null,null,null,null,null,null,null,null,null,null,null,null,null,null,null,null,null,null,null,null,null,null,null,null,null,"3/8","9","59/40","1/189","они равны"]
[null,null,null,null,null,null,null,null,null,null,null,null,null,null,null,null,null,null,null,null,null,null,null,null,null,null,null,null,null,null,null,null,null,null,null,null,null,null,null,null,null,null,null,null,null,null,null,null,null,null,null,null,null,"1/4","64","21/40","100/189","сравнить невозможно"]
["1.","Какую часть отрезка МК составляет отрезок АС?",null,null,null,null,null,null,null,null,null,null,null,null,null,null,null,null,null,null,null,null,null,null,null,null,null,null,null,null,null,null,null,null,null,null,null,null,null,null,null,null,null,null,null,null,null,null,null,null,null,null,null,"5/8","15","35/24","89/100","33  67/89% от 93,309"]
[null,null,null,null,null,null,null,null,null,null,null,null,null,null,null,null,null,null,null,null,null,null,null,null,null,null,null,null,null,null,null,null,null,null,null,null,null,null,null,null,null,null,null,null,null,null,null,null,null,null,null,null,null,"1/3","16","11/40","189/100","93,309% от 33  67/89"]
[null,null,null,null,null,null,null,null,null,null,null,null,null,null,null,null,null,null,null,null,null,null,null,null,null,null,null,null,null,null,null,null,null,null,null,null,null,null,null,null,null,null,null,null,null,null,null,null,null,null,null,null,null,"t4/1","t4/2","t4/3","t4/4","t4/5"]
[]
[]
[null,null,null,null,null,null,null,null,null,null,null,null,null,null,null,null,null,null,null,null,null,null,null,null,null,null,null,null,null,null,null,null,null,null,null,null,null,null,null,null,null,null,null,null,null,null,null,null,null,null,null,null,null,1,{"$f":"IF(B7=1,1,0)","v":0}]
[null,null,null,null,null,null,null,null,null,null,null,null,null,null,null,null,null,null,null,null,null,null,null,null,null,null,null,null,null,null,null,null,null,null,null,null,null,null,null,null,null,null,null,null,null,null,null,null,null,null,null,null,null,2,{"$f":"IF(B12=1,1,0)","v":0}]
["2.","Из 24 человек в классе 3/8 - девочки. Сколько девочек в классе? ",null,null,null,null,null,null,null,null,null,null,null,null,null,null,null,null,null,null,null,null,null,null,null,null,null,null,null,null,null,null,null,null,null,null,null,null,null,null,null,null,null,null,null,null,null,null,null,null,null,null,null,3,{"$f":"IF(B16=2,1,0)","v":0}]
[null,null,null,null,null,null,null,null,null,null,null,null,null,null,null,null,null,null,null,null,null,null,null,null,null,null,null,null,null,null,null,null,null,null,null,null,null,null,null,null,null,null,null,null,null,null,null,null,null,null,null,null,null,4,{"$f":"IF(B20=4,1,0)","v":0}]
[null,null,null,null,null,null,null,null,null,null,null,null,null,null,null,null,null,null,null,null,null,null,null,null,null,null,null,null,null,null,null,null,null,null,null,null,null,null,null,null,null,null,null,null,null,null,null,null,null,null,null,null,null,5,{"$f":"IF(B24=1,1,0)","v":0}]
[null,null,null,null,null,null,null,null,null,null,null,null,null,null,null,null,null,null,null,null,null,null,null,null,null,null,null,null,null,null,null,null,null,null,null,null,null,null,null,null,null,null,null,null,null,null,null,null,null,null,null,null,null,"Cумма",{"$f":"SUM(BC8:BC12)","v":0}]
["3.","Найдите 7/8 от 3/5.",null,null,null,null,null,null,null,null,null,null,null,null,null,null,null,null,null,null,null,null,null,null,null,null,null,null,null,null,null,null,null,null,null,null,null,null,null,null,null,null,null,null,null,null,null,null,null,null,null,null,null,null,{"$f":"IF(BC13>4,\"Отлично!\",IF(BC13=4,\"Хорошо!\",IF(BC13=3,\"Удовлетворительно!\",\"Неудовлетворительно!\")))","v":"Неудовлетворительно!"}]
[]
[]
[]
["4.","Какую часть числа составляет 189%?"]
[]
[]
[null,null,null,null,null,null,null,null,null,"Нажми кнопку, чтобы узнать результат"]
["5.","Что больше "]
[null,null,null,null,null,null,null,null,null,null,"результат"]
[]
[]
[]
[]
[]
[]
[]
[]
[]
[]
[]
[]
[]
[]
[]
[]
[]
[]
[]
[]
[]
[]
[]
[]
[]
[]
[null,{"$f":"IF(BC13>4,\"Отлично!\",IF(BC13=4,\"Хорошо!\",IF(BC13=3,\"Удовлетворительно!\",\"Неудовлетворительно!\")))","v":"Неудовлетворительно!"}]

{"sheet":"Т 5","index":5,"n_rows":35,"n_cols":58,"rows_kept":35,"cut":false,"hidden":false,"merged":[[0,0,0,5],[16,10,16,11],[18,9,19,12],[34,1,35,3]]}
["Тест 5. Деление обыкновенных дробей",null,null,null,null,null,null,null,null,null,null,null,null,null,null,null,null,null,null,null,null,null,null,null,null,null,null,null,null,null,null,null,null,null,null,null,null,null,null,null,null,null,null,null,null,null,null,null,null,null,null,null,null,"1","5/6","3/5","1,3","81"]
[null,null,null,null,null,null,null,null,null,null,null,null,null,null,null,null,null,null,null,null,null,null,null,null,null,null,null,null,null,null,null,null,null,null,null,null,null,null,null,null,null,null,null,null,null,null,null,null,null,null,null,null,null,"7/5","5/54","147/320","1,375","4"]
["1.","Обратным к числу          является число",null,null,null,null,null,null,null,null,null,null,null,null,null,null,null,null,null,null,null,null,null,null,null,null,null,null,null,null,null,null,null,null,null,null,null,null,null,null,null,null,null,null,null,null,null,null,null,null,null,null,null,"7/12","2  13/18","1  2/3","0,375","1/81"]
[null,null,null,null,null,null,null,null,null,null,null,null,null,null,null,null,null,null,null,null,null,null,null,null,null,null,null,null,null,null,null,null,null,null,null,null,null,null,null,null,null,null,null,null,null,null,null,null,null,null,null,null,null,"5/12","15/54","7/20","1,38","1/4"]
[null,5]
[null,null,null,null,null,null,null,null,null,null,null,null,null,null,null,null,null,null,null,null,null,null,null,null,null,null,null,null,null,null,null,null,null,null,null,null,null,null,null,null,null,null,null,null,null,null,null,null,null,null,null,null,null,"t5/1","t5/2","t5/3","t5/4","t5/5"]
["2.","Вычислите "]
[null,null,null,null,null,null,null,null,null,null,null,null,null,null,null,null,null,null,null,null,null,null,null,null,null,null,null,null,null,null,null,null,null,null,null,null,null,null,null,null,null,null,null,null,null,null,null,null,null,null,null,null,null,1,{"$f":"IF(B5=3,1,0)","v":0}]
[null,5,null,null,null,null,null,null,null,null,null,null,null,null,null,null,null,null,null,null,null,null,null,null,null,null,null,null,null,null,null,null,null,null,null,null,null,null,null,null,null,null,null,null,null,null,null,null,null,null,null,null,null,2,{"$f":"IF(B9=2,1,0)","v":0}]
[null,null,null,null,null,null,null,null,null,null,null,null,null,null,null,null,null,null,null,null,null,null,null,null,null,null,null,null,null,null,null,null,null,null,null,null,null,null,null,null,null,null,null,null,null,null,null,null,null,null,null,null,null,3,{"$f":"IF(B13=1,1,0)","v":0}]
["3.","Вычислите",null,null,null,null,null,null,null,null,null,null,null,null,null,null,null,null,null,null,null,null,null,null,null,null,null,null,null,null,null,null,null,null,null,null,null,null,null,null,null,null,null,null,null,null,null,null,null,null,null,null,null,4,{"$f":"IF(B17=2,1,0)","v":0}]
[null,null,null,null,null,null,null,null,null,null,null,null,null,null,null,null,null,null,null,null,null,null,null,null,null,null,null,null,null,null,null,null,null,null,null,null,null,null,null,null,null,null,null,null,null,null,null,null,null,null,null,null,null,5,{"$f":"IF(B21=1,1,0)","v":0}]
[null,5,null,null,null,null,null,null,null,null,null,null,null,null,null,null,null,null,null,null,null,null,null,null,null,null,null,null,null,null,null,null,null,null,null,null,null,null,null,null,null,null,null,null,null,null,null,null,null,null,null,null,null,"сумма",{"$f":"SUM(BC8:BC12)","v":0}]
[null,null,null,null,null,null,null,null,null,null,null,null,null,null,null,null,null,null,null,null,null,null,null,null,null,null,null,null,null,null,null,null,null,null,null,null,null,null,null,null,null,null,null,null,null,null,null,null,null,null,null,null,null,null,{"$f":"IF(BC13=5,\"Отлично!\",IF(BC13=4,\"Хорошо!\"+IF(BC13=3,\"Удовлетворительно!\",\"Неудовлетворительно!\")))","v":false}]
["4.","Представьте число             в виде десятичной дроби",null,null,null,null,null,null,null,"Нажми кнопку, чтобы узнать результат"]
[]
[null,5,null,null,null,null,null,null,null,null,"Результат"]
[]
["5.","Трубу длиной 18 м разрезали на куски  длиной по      м."]
[null,"Сколько получилось кусков?"]
[null,5]
[]
[]
[]
[]
[]
[]
[]
[]
[]
[]
[]
[]
[]
[null,{"$f":"IF(BC13=5,\"Отлично!\",IF(BC13=4,\"Хорошо!\",IF(BC13=3,\"Удовлетворительно!\",\"Неудовлетворительно!\")))","v":"Неудовлетворительно!"}]

{"sheet":"Т 6","index":6,"n_rows":42,"n_cols":58,"rows_kept":42,"cut":false,"hidden":false,"merged":[[0,0,0,6],[19,10,19,11],[41,1,43,4]]}
["Тест №6. Нахождение числа по его дроби",null,null,null,null,null,null,null,null,null,null,null,null,null,null,null,null,null,null,null,null,null,null,null,null,null,null,null,null,null,null,null,null,null,null,null,null,null,null,null,null,null,null,null,null,null,null,null,null,null,null,null,null,"16","4/7","253/100   %","1750 л","1  1/2"]
[null,null,null,null,null,null,null,null,null,null,null,null,null,null,null,null,null,null,null,null,null,null,null,null,null,null,null,null,null,null,null,null,null,null,null,null,null,null,null,null,null,null,null,null,null,null,null,null,null,null,null,null,null,"1/16","1  3/4","25,3  %","175 л","2/3"]
["1.","Петя решил 28 задач, что сотавляет          всего числа задач,",null,null,null,null,null,null,null,null,null,null,null,null,null,null,null,null,null,null,null,null,null,null,null,null,null,null,null,null,null,null,null,null,null,null,null,null,null,null,null,null,null,null,null,null,null,null,null,null,null,null,null,"49","16/243","253  %","1792 л","1/150"]
[null,"предложенных ему учителем. Сколько задач дал",null,null,null,null,null,null,null,null,null,null,null,null,null,null,null,null,null,null,null,null,null,null,null,null,null,null,null,null,null,null,null,null,null,null,null,null,null,null,null,null,null,null,null,null,null,null,null,null,null,null,null,"1/49","6/49","2,53  %","179,2 л","867/5000"]
[null,"Пете учитель?"]
[null,null,null,null,null,null,null,null,null,null,null,null,null,null,null,null,null,null,null,null,null,null,null,null,null,null,null,null,null,null,null,null,null,null,null,null,null,null,null,null,null,null,null,null,null,null,null,null,null,null,null,null,null,"t6/1","t6/2","t6/3","t6/4","t6/5"]
[]
[null,null,null,null,null,null,null,null,null,null,null,null,null,null,null,null,null,null,null,null,null,null,null,null,null,null,null,null,null,null,null,null,null,null,null,null,null,null,null,null,null,null,null,null,null,null,null,null,null,null,null,null,null,1,{"$f":"IF(B7=3,1,0)","v":0}]
["2.","Известно, что      от некоторого числа равно         .",null,null,null,null,null,null,null,null,null,null,null,null,null,null,null,null,null,null,null,null,null,null,null,null,null,null,null,null,null,null,null,null,null,null,null,null,null,null,null,null,null,null,null,null,null,null,null,null,null,null,null,2,{"$f":"IF(B12=1,1,0)","v":0}]
[null,"Найдите это число.",null,null,null,null,null,null,null,null,null,null,null,null,null,null,null,null,null,null,null,null,null,null,null,null,null,null,null,null,null,null,null,null,null,null,null,null,null,null,null,null,null,null,null,null,null,null,null,null,null,null,null,3,{"$f":"IF(B16=3,1,0)","v":0}]
[null,null,null,null,null,null,null,null,null,null,null,null,null,null,null,null,null,null,null,null,null,null,null,null,null,null,null,null,null,null,null,null,null,null,null,null,null,null,null,null,null,null,null,null,null,null,null,null,null,null,null,null,null,4,{"$f":"IF(B21=2,1,0)","v":0}]
[null,null,null,null,null,null,null,null,null,null,null,null,null,null,null,null,null,null,null,null,null,null,null,null,null,null,null,null,null,null,null,null,null,null,null,null,null,null,null,null,null,null,null,null,null,null,null,null,null,null,null,null,null,5,{"$f":"IF(B25=2,1,0)","v":0}]
[null,null,null,null,null,null,null,null,null,null,null,null,null,null,null,null,null,null,null,null,null,null,null,null,null,null,null,null,null,null,null,null,null,null,null,null,null,null,null,null,null,null,null,null,null,null,null,null,null,null,null,null,null,"Сумма",{"$f":"SUM(BC8:BC12)","v":0}]
["3.","Запишите в виде процентов 2,53 числа."]
[]
[null,5]
[]
["4.","56 литров составляют 32% от объема цистерны.",null,null,null,null,null,null,null,"Нажми кнопку, чтобы узнать результат"]
[null,"Найдите объем цистерны."]
[null,null,null,null,null,null,null,null,null,null,"Результат"]
[]
[]
["5.","Известно, что 51% от некоторого числа равно        ."]
[null,"Найдите это число."]
[]
[]
[]
[]
[]
[]
[]
[]
[]
[]
[]
[]
[]
[]
[]
[]
[]
[null,{"$f":"IF(BC13=5,\"Отлично!\",IF(BC13=4,\"Хорошо!\",IF(BC13=3,\"Удовлетворительно!\",\"Неудовлетворительно!\")))","v":"Неудовлетворительно!"}]

{"sheet":"Т 7","index":7,"n_rows":44,"n_cols":57,"rows_kept":44,"cut":false,"hidden":false,"merged":[[0,0,0,5],[21,2,21,3],[19,13,19,14],[43,1,44,4]]}
["Тест 7. Дробные выражения",null,null,null,null,null,null,null,null,null,null,null,null,null,null,null,null,null,null,null,null,null,null,null,null,null,null,null,null,null,null,null,null,null,null,null,null,null,null,null,null,null,null,null,null,null,null,null,null,null,1,{"$f":"IF(B5=4,1,0)","v":0},null,"5,1","1,8  км","5/23","13  1/2"]
[null,null,null,null,null,null,null,null,null,null,null,null,null,null,null,null,null,null,null,null,null,null,null,null,null,null,null,null,null,null,null,null,null,null,null,null,null,null,null,null,null,null,null,null,null,null,null,null,null,null,2,{"$f":"IF(B9=1,1,0)","v":0},null,"1  4/9","9,8  км","2  4/23","1/6"]
["1.","Уменьшите 5,3 на     .",null,null,null,null,null,null,null,null,null,null,null,null,null,null,null,null,null,null,null,null,null,null,null,null,null,null,null,null,null,null,null,null,null,null,null,null,null,null,null,null,null,null,null,null,null,null,null,null,3,{"$f":"IF(B13=2,1,0)","v":0},null,"5  47/90","12,6  км","2,17","3/50"]
[null,null,null,null,null,null,null,null,null,null,null,null,null,null,null,null,null,null,null,null,null,null,null,null,null,null,null,null,null,null,null,null,null,null,null,null,null,null,null,null,null,null,null,null,null,null,null,null,null,null,4,{"$f":"IF(B17=4,1,0)","v":0},null,"5  7/90","4  22/35  км","0,37","2/27"]
[null,null,null,null,null,null,null,null,null,null,null,null,null,null,null,null,null,null,null,null,null,null,null,null,null,null,null,null,null,null,null,null,null,null,null,null,null,null,null,null,null,null,null,null,null,null,null,null,null,null,5,{"$f":"IF(C22=0.84,1,0)","v":0}]
[null,null,null,null,null,null,null,null,null,null,null,null,null,null,null,null,null,null,null,null,null,null,null,null,null,null,null,null,null,null,null,null,null,null,null,null,null,null,null,null,null,null,null,null,null,null,null,null,null,null,"Summa",{"$f":"SUM(AZ1:AZ5)","v":0}]
["2.","Какое расстояние пройдет пешеход за      часа,",null,null,null,null,"двигаясь со скоростью 4,2 км/ч "]
[]
[]
[]
["3.","Вычислите "]
[]
[]
[]
["4.","Вычислите"]
[]
[]
[null,null,null,null,null,null,null,null,null,null,null,null,"Нажми кнопку, чтобы узнать результат"]
["5.","Найдите объем прямоугольного параллепипеда,"]
[null,"если известно, что его длина 3 см, ширина       см,а высота 1,4 см.",null,null,null,null,null,null,null,null,null,null,null,"Результат"]
[]
[null,"Ответ:",null,null,"куб.см"]
[]
[]
[]
[]
[]
[]
[]
[]
[]
[]
[]
[]
[]
[]
[]
[]
[]
[]
[]
[]
[]
[null,{"$f":"IF(AZ6=5,\"Отлично!\",IF(AZ6=4,\"Хорошо!\",IF(AZ6=3,\"Удовлетворительно!\",\"Неудовлетворительно!\")))","v":"Неудовлетворительно!"}]

{"sheet":"Т 8","index":8,"n_rows":43,"n_cols":58,"rows_kept":43,"cut":false,"hidden":false,"merged":[[0,0,0,4],[16,14,16,15],[42,1,43,4]]}
["Тест 8. Отношения",null,null,null,null,null,null,null,null,null,null,null,null,null,null,null,null,null,null,null,null,null,null,null,null,null,null,null,null,null,null,null,null,null,null,null,null,null,null,null,null,null,null,null,null,null,null,null,null,null,null,null,null,"7:5","7/10","11:2","1:250 000","38,4  %"]
[null,null,null,null,null,null,null,null,null,null,null,null,null,null,null,null,null,null,null,null,null,null,null,null,null,null,null,null,null,null,null,null,null,null,null,null,null,null,null,null,null,null,null,null,null,null,null,null,null,null,null,null,null,"7:12","10:7","11:2000","1:40 000","15  %"]
["1.","В саду растут 7 яблонь и 5 слив. Найдите отношение числа слив к числу всех деревьев в саду.",null,null,null,null,null,null,null,null,null,null,null,null,null,null,null,null,null,null,null,null,null,null,null,null,null,null,null,null,null,null,null,null,null,null,null,null,null,null,null,null,null,null,null,null,null,null,null,null,null,null,null,"12:5","10:9","11/200","1:400 000","66,6  %"]
[null,null,null,null,null,null,null,null,null,null,null,null,null,null,null,null,null,null,null,null,null,null,null,null,null,null,null,null,null,null,null,null,null,null,null,null,null,null,null,null,null,null,null,null,null,null,null,null,null,null,null,null,null,"5:12","9/10","2000:11","1:4","18  %"]
[]
[null,null,null,null,null,null,null,null,null,null,null,null,null,null,null,null,null,null,null,null,null,null,null,null,null,null,null,null,null,null,null,null,null,null,null,null,null,null,null,null,null,null,null,null,null,null,null,null,null,null,null,null,null,1,{"$f":"IF(B5=4,1,0)","v":0}]
["2.","Найдите отношение длин отрезков МК и АВ.",null,null,null,null,null,null,null,null,null,null,null,null,null,null,null,null,null,null,null,null,null,null,null,null,null,null,null,null,null,null,null,null,null,null,null,null,null,null,null,null,null,null,null,null,null,null,null,null,null,null,null,2,{"$f":"IF(B9=2,1,0)","v":0}]
[null,null,null,null,null,null,null,null,null,null,null,null,null,null,null,null,null,null,null,null,null,null,null,null,null,null,null,null,null,null,null,null,null,null,null,null,null,null,null,null,null,null,null,null,null,null,null,null,null,null,null,null,null,3,{"$f":"IF(B13=2,1,0)","v":0}]
[null,null,null,null,null,null,null,null,null,null,null,null,null,null,null,null,null,null,null,null,null,null,null,null,null,null,null,null,null,null,null,null,null,null,null,null,null,null,null,null,null,null,null,null,null,null,null,null,null,null,null,null,null,4,{"$f":"IF(B18=3,1,0)","v":0}]
[null,null,null,null,null,null,null,null,null,null,null,null,null,null,null,null,null,null,null,null,null,null,null,null,null,null,null,null,null,null,null,null,null,null,null,null,null,null,null,null,null,null,null,null,null,null,null,null,null,null,null,null,null,5,{"$f":"IF(B22=2,1,0)","v":0}]
["3.","Найдите отношение 11 м к 2 км.",null,null,null,null,null,null,null,null,null,null,null,null,null,null,null,null,null,null,null,null,null,null,null,null,null,null,null,null,null,null,null,null,null,null,null,null,null,null,null,null,null,null,null,null,null,null,null,null,null,null,null,"summa",{"$f":"SUM(BC6:BC10)","v":0}]
[]
[]
[]
["4.","Найдите масштаб карты, если известно, что линия длиной 3 см изображает на этой карте",null,null,null,null,null,null,null,null,null,null,null,"Нажми кнопку, чтобы узнать результат"]
[null,"участок реки длиной 12 км."]
[null,null,null,null,null,null,null,null,null,null,null,null,null,null,"Результат"]
[]
[]
["5.","Из 160 деталей 24 оказались бракованными. Сколько процентов деталей оказались бракованными?"]
[]
[]
[]
[]
[]
[]
[]
[]
[]
[]
[]
[]
[]
[]
[]
[]
[]
[]
[]
[]
[]
[]
[null,{"$f":"IF(BC11=5,\"Отлично!\",IF(BC11=4,\"Хорошо!\",IF(BC11=3,\"Удовлетворительно!\",\"Неудовлетворительно!\")))","v":"Неудовлетворительно!"}]

{"sheet":"Т 9","index":9,"n_rows":41,"n_cols":58,"rows_kept":41,"cut":false,"hidden":false,"merged":[[0,0,0,4],[15,12,15,13],[40,7,41,10]]}
["Тест 9. Пропорции",null,null,null,null,null,null,null,null,null,null,null,null,null,null,null,null,null,null,null,null,null,null,null,null,null,null,null,null,null,null,null,null,null,null,null,null,null,null,null,null,null,null,null,null,null,null,null,null,null,null,null,null,"3 и 7","2:9=13:7","1/5","12 г","5  1/2"]
["1.","Какие из чисел являются средними членами пропорции                          ?",null,null,null,null,null,null,null,null,null,null,null,null,null,null,null,null,null,null,null,null,null,null,null,null,null,null,null,null,null,null,null,null,null,null,null,null,null,null,null,null,null,null,null,null,null,null,null,null,null,null,null,"5 и 8","4:5=5:4","5","18 г","8  2/3"]
[null,null,null,null,null,null,null,null,null,null,null,null,null,null,null,null,null,null,null,null,null,null,null,null,null,null,null,null,null,null,null,null,null,null,null,null,null,null,null,null,null,null,null,null,null,null,null,null,null,null,null,null,null,"5 и 7","11:2=1/11 :1/2","1  1/4","2 г","22"]
[null,1,null,null,null,null,null,null,null,null,null,null,null,null,null,null,null,null,null,null,null,null,null,null,null,null,null,null,null,null,null,null,null,null,null,null,null,null,null,null,null,null,null,null,null,null,null,null,null,null,null,null,null,"3 и 8","3:2=1/4 : 1/6 ","1/20","16 г","4"]
[]
["2.","Какая из пропорций верна?",null,null,null,null,null,null,null,null,null,null,null,null,null,null,null,null,null,null,null,null,null,null,null,null,null,null,null,null,null,null,null,null,null,null,null,null,null,null,null,null,null,null,null,null,null,null,null,null,null,null,null,1,{"$f":"IF(B4=4,1,0)","v":0}]
[null,null,null,null,null,null,null,null,null,null,null,null,null,null,null,null,null,null,null,null,null,null,null,null,null,null,null,null,null,null,null,null,null,null,null,null,null,null,null,null,null,null,null,null,null,null,null,null,null,null,null,null,null,2,{"$f":"IF(B8=2,1,0)","v":1}]
[null,2,null,null,null,null,null,null,null,null,null,null,null,null,null,null,null,null,null,null,null,null,null,null,null,null,null,null,null,null,null,null,null,null,null,null,null,null,null,null,null,null,null,null,null,null,null,null,null,null,null,null,null,3,{"$f":"IF(B12=2,1,0)","v":1}]
[null,null,null,null,null,null,null,null,null,null,null,null,null,null,null,null,null,null,null,null,null,null,null,null,null,null,null,null,null,null,null,null,null,null,null,null,null,null,null,null,null,null,null,null,null,null,null,null,null,null,null,null,null,4,{"$f":"IF(B17=3,1,0)","v":1}]
["3.","Найдите неизвестный член пропорции",null,null,null,null,null,null,null,null,null,null,null,null,null,null,null,null,null,null,null,null,null,null,null,null,null,null,null,null,null,null,null,null,null,null,null,null,null,null,null,null,null,null,null,null,null,null,null,null,null,null,null,5,{"$f":"IF(B21=2,1,0)","v":1}]
[null,null,null,null,null,null,null,null,null,null,null,null,null,null,null,null,null,null,null,null,null,null,null,null,null,null,null,null,null,null,null,null,null,null,null,null,null,null,null,null,null,null,null,null,null,null,null,null,null,null,null,null,null,"summa",{"$f":"SUM(BC6:BC10)","v":4}]
[null,2]
[]
["4.","Металлический брусок объемом 2 куб.см имеет массу 12 г.",null,null,null,null,null,null,null,null,null,"Нажми кнопку, чтобы узнать результат"]
[null,"Какую массу имеет брусок из того же металла объемом 3 куб.см?"]
[null,null,null,null,null,null,null,null,null,null,null,null,"РЕЗУЛЬТАТ"]
[null,3]
[]
["5.","При каком значении х верна пропорция                            ?"]
[]
[null,2]
[]
[]
[]
[]
[]
[]
[]
[]
[]
[]
[]
[]
[]
[]
[]
[]
[]
[]
[]
[null,null,null,null,null,null,null,{"$f":"IF(BC11=5,\"Хорошо!\",IF(BC11=4,\"Хорошо!\",IF(BC11=3,\"Удовлетворительно!\",\"Неудовлетворительно!\")))","v":"Хорошо!"}]

{"sheet":"Т 10","index":10,"n_rows":40,"n_cols":58,"rows_kept":40,"cut":false,"hidden":false,"merged":[[18,14,18,15],[39,6,40,9]]}
["Тест 10. Положительные и отрицательные числа. Координатная прямая",null,null,null,null,null,null,null,null,null,null,null,null,null,null,null,null,null,null,null,null,null,null,null,null,null,null,null,null,null,null,null,null,null,null,null,null,null,null,null,null,null,null,null,null,null,null,null,null,null,null,null,null,"A","0 и 8","6,45","0<-13","307 и -307"]
[null,null,null,null,null,null,null,null,null,null,null,null,null,null,null,null,null,null,null,null,null,null,null,null,null,null,null,null,null,null,null,null,null,null,null,null,null,null,null,null,null,null,null,null,null,null,null,null,null,null,null,null,null,"B","-7 и 7","-6,45","-6<-15","307"]
["1.","Какая из точек имеет координату, равную -5?",null,null,null,null,null,null,null,null,null,null,null,null,null,null,null,null,null,null,null,null,null,null,null,null,null,null,null,null,null,null,null,null,null,null,null,null,null,null,null,null,null,null,null,null,null,null,null,null,null,null,null,"C","3 и -7","0","-29>-35","-307"]
[null,null,null,null,null,null,null,null,null,null,null,null,null,null,null,null,null,null,null,null,null,null,null,null,null,null,null,null,null,null,null,null,null,null,null,null,null,null,null,null,null,null,null,null,null,null,null,null,null,null,null,null,null,"D","-1/4 и 4 ","6,45 и -6,45","-20>7","таких значений нет"]
[null,5]
[]
["2.","Какие из точек являются противоположными?"]
[]
[null,5,null,null,null,null,null,null,null,null,null,null,null,null,null,null,null,null,null,null,null,null,null,null,null,null,null,null,null,null,null,null,null,null,null,null,null,null,null,null,null,null,null,null,null,null,null,null,null,null,null,null,null,"В5","В9","В13","В17","В21"]
[]
["3.","Найдите |-6,45|",null,null,null,null,null,null,null,null,null,null,null,null,null,null,null,null,null,null,null,null,null,null,null,null,null,null,null,null,null,null,null,null,null,null,null,null,null,null,null,null,null,null,null,null,null,null,null,null,null,null,null,null,1,{"$f":"IF(B5=2,1,0)","v":0}]
[null,null,null,null,null,null,null,null,null,null,null,null,null,null,null,null,null,null,null,null,null,null,null,null,null,null,null,null,null,null,null,null,null,null,null,null,null,null,null,null,null,null,null,null,null,null,null,null,null,null,null,null,null,null,2,{"$f":"IF(B9=2,1,0)","v":0}]
[null,5,null,null,null,null,null,null,null,null,null,null,null,null,null,null,null,null,null,null,null,null,null,null,null,null,null,null,null,null,null,null,null,null,null,null,null,null,null,null,null,null,null,null,null,null,null,null,null,null,null,null,null,null,3,{"$f":"IF(B13=1,1,0)","v":0}]
[null,null,null,null,null,null,null,null,null,null,null,null,null,null,null,null,null,null,null,null,null,null,null,null,null,null,null,null,null,null,null,null,null,null,null,null,null,null,null,null,null,null,null,null,null,null,null,null,null,null,null,null,null,null,4,{"$f":"IF(B17=3,1,0)","v":0}]
["4.","Укажите верное неравенство:",null,null,null,null,null,null,null,null,null,null,null,null,null,null,null,null,null,null,null,null,null,null,null,null,null,null,null,null,null,null,null,null,null,null,null,null,null,null,null,null,null,null,null,null,null,null,null,null,null,null,null,null,5,{"$f":"IF(B21=1,1,0)","v":0}]
[null,null,null,null,null,null,null,null,null,null,null,null,null,null,null,null,null,null,null,null,null,null,null,null,null,null,null,null,null,null,null,null,null,null,null,null,null,null,null,null,null,null,null,null,null,null,null,null,null,null,null,null,null,null,6,{"$f":"IF(C25=-25,1,0)","v":0}]
[null,5,null,null,null,null,null,null,null,null,null,null,null,"Нажми кнопку, чтобы узнать результат",null,null,null,null,null,null,null,null,null,null,null,null,null,null,null,null,null,null,null,null,null,null,null,null,null,null,null,null,null,null,null,null,null,null,null,null,null,null,null,null,"summa",{"$f":"SUM(BD11:BD16)","v":0}]
[]
["5.","Укажите все значения х, при которых верно равенство |x|=307.",null,null,null,null,null,null,null,null,null,null,null,null,"РЕЗУЛЬТАТ"]
[]
[null,5]
[]
["6.","Какое из чисел |-33|; 0; 12; -21; -25  расположено на координатной прямой левее?"]
[]
[null,"Ответ:"]
[]
[]
[]
[]
[]
[]
[]
[]
[]
[]
[]
[]
[]
[]
[null,null,null,null,null,null,{"$f":"IF(BD17>4,\"Отлично!\",IF(BD17=4,\"Хорошо!\",IF(BD17=3,\"Удовлетворительно!\",\"Неудовлетворительно!\")))","v":"Неудовлетворительно!"}]

{"sheet":"Т 11","index":11,"n_rows":44,"n_cols":57,"rows_kept":44,"cut":false,"hidden":false,"merged":[[22,5,22,6],[0,0,0,13],[43,6,44,10]]}
["Тест 11. Сложение и вычитание положительных и отрицательных чисел",null,null,null,null,null,null,null,null,null,null,null,null,null,null,null,null,null,null,null,null,null,null,null,null,null,null,null,null,null,null,null,null,null,null,null,null,null,null,null,null,null,null,null,null,null,null,null,null,null,1,{"$f":"IF(B5=2,1,0)","v":0},"43","70","11,8","75","63"]
[null,null,null,null,null,null,null,null,null,null,null,null,null,null,null,null,null,null,null,null,null,null,null,null,null,null,null,null,null,null,null,null,null,null,null,null,null,null,null,null,null,null,null,null,null,null,null,null,null,null,2,{"$f":"IF(B9=4,1,0)","v":0},"-43","-70","1,6","-27","-63"]
["1.","Найдите сумму  -18 и  -25.",null,null,"5.","Вычислите: 34 -(-29).",null,null,"9.","Найдите длину отрезка АВ, если А(-39), В(43)",null,null,null,null,null,null,null,null,null,null,null,null,null,null,null,null,null,null,null,null,null,null,null,null,null,null,null,null,null,null,null,null,null,null,null,null,null,null,null,null,3,{"$f":"IF(B13=2,1,0)","v":0},"7","24","-11,8","27","5"]
[null,null,null,null,null,null,null,null,null,null,null,null,null,null,null,null,null,null,null,null,null,null,null,null,null,null,null,null,null,null,null,null,null,null,null,null,null,null,null,null,null,null,null,null,null,null,null,null,null,null,4,{"$f":"IF(B17=2,1,0)","v":0},"-7","-24","-1,6","-75","-5"]
[null,null,null,null,null,null,null,null,null,null,null,null,null,null,null,null,null,null,null,null,null,null,null,null,null,null,null,null,null,null,null,null,null,null,null,null,null,null,null,null,null,null,null,null,null,null,null,null,null,null,5,{"$f":"IF(F5=1,1,0)","v":0}]
[null,null,null,null,null,null,null,null,null,null,null,null,null,null,null,null,null,null,null,null,null,null,null,null,null,null,null,null,null,null,null,null,null,null,null,null,null,null,null,null,null,null,null,null,null,null,null,null,null,null,6,{"$f":"IF(F9=4,1,0)","v":0}]
["2.","Вычислите: 23 + (-47).",null,null,"6.","Вычислите:  -17-24.",null,null,"10.","Известно, что длина отрезка равна 7 и координата одного из его концов",null,null,null,null,null,null,null,null,null,null,null,null,null,null,null,null,null,null,null,null,null,null,null,null,null,null,null,null,null,null,null,null,null,null,null,null,null,null,null,null,7,{"$f":"IF(F13=4,1,0)","v":0},"7","-7/45","-88","82","7"]
[null,null,null,null,null,null,null,null,null,"равна  -12. Найдите координату другого конца отрезка.",null,null,null,null,null,null,null,null,null,null,null,null,null,null,null,null,null,null,null,null,null,null,null,null,null,null,null,null,null,null,null,null,null,null,null,null,null,null,null,null,8,{"$f":"IF(F17=3,1,0)","v":0},"-7","43/45","88","-82","-19 или -5"]
[null,null,null,null,null,null,null,null,null,null,null,null,null,null,null,null,null,null,null,null,null,null,null,null,null,null,null,null,null,null,null,null,null,null,null,null,null,null,null,null,null,null,null,null,null,null,null,null,null,null,9,{"$f":"IF(J5=1,1,0)","v":0},"41","-43/45","34","4","-5"]
[null,null,null,null,null,null,null,null,null,null,null,null,null,null,null,null,null,null,null,null,null,null,null,null,null,null,null,null,null,null,null,null,null,null,null,null,null,null,null,null,null,null,null,null,null,null,null,null,null,null,10,{"$f":"IF(J10=2,1,0)","v":0},"-41","7/45","-34","-4","-19"]
["3.","Вычислите:  -5,1 + 6,7.",null,null,"7.","Найдите разность  -0,4 и",null,null,null,null,null,null,null,null,null,null,null,null,null,null,null,null,null,null,null,null,null,null,null,null,null,null,null,null,null,null,null,null,null,null,null,null,null,null,null,null,null,null,null,null,11,{"$f":"IF(K14=56,1,0)","v":0}]
[null,null,null,null,null,null,null,null,"11.","Вычислите:  -15+15+0+28-(-28)",null,null,null,null,null,null,null,null,null,null,null,null,null,null,null,null,null,null,null,null,null,null,null,null,null,null,null,null,null,null,null,null,null,null,null,null,null,null,null,null,12,{"$f":"IF(K17=-19,1,0)","v":0}]
[null,null,null,null,null,null,null,null,null,null,null,null,null,null,null,null,null,null,null,null,null,null,null,null,null,null,null,null,null,null,null,null,null,null,null,null,null,null,null,null,null,null,null,null,null,null,null,null,null,null,"сумма",{"$f":"SUM(AZ1:AZ12)","v":0}]
[null,null,null,null,null,null,null,null,null,"Ответ:"]
["4.","Найдите разность 24 и 51.",null,null,"8.","Вычислите:  -27+|-61|.",null,null,"12.","Решите уравнение  -х=-42-(-61)"]
[]
[null,null,null,null,null,null,null,null,null,"Ответ:"]
[]
[]
[]
[null,null,null,null,"Нажми кнопку, чтобы узнать результат"]
[]
[null,null,null,null,null,"РЕЗУЛЬТАТ"]
[]
[]
[]
[]
[]
[]
[]
[]
[]
[]
[]
[]
[]
[]
[]
[]
[]
[]
[]
[]
[null,null,null,null,null,null,{"$f":"IF(AZ13>10,\"ОТЛИЧНО!\",IF(AZ13>8,\"Хорошо!\",IF(AZ13>6,\"Удовлетворительно!\",\"НЕУДОВЛЕТВОРИТЕЛЬНО!\")))","v":"НЕУДОВЛЕТВОРИТЕЛЬНО!"}]

{"sheet":"Т 12","index":12,"n_rows":45,"n_cols":57,"rows_kept":45,"cut":false,"hidden":false,"merged":[[3,13,3,15],[21,5,21,6],[0,0,0,17],[44,6,46,9],[21,0,21,4]]}
["Тест 12. Умножение и деление положительных и отрицательных чисел",null,null,null,null,null,null,null,null,null,null,null,null,null,null,null,null,null,null,null,null,null,null,null,null,null,null,null,null,null,null,null,null,null,null,null,null,null,null,null,null,null,null,null,null,null,null,null,null,null,1,{"$f":"IF(B6=3,1,0)","v":0},"27 и 16","0,48","-5/8","6","125"]
[null,null,null,null,null,null,null,null,null,null,null,null,null,null,null,null,null,null,null,null,null,null,null,null,null,null,null,null,null,null,null,null,null,null,null,null,null,null,null,null,null,null,null,null,null,null,null,null,null,null,2,{"$f":"IF(B10=2,1,0)","v":0},"-27 и 16","-0,48","5/8","-6","-125"]
["1.","Найдите произведение  -9*(-3) и ",null,null,null,null,"5.","Вычислите |6,25|:|-0,5|.",null,null,null,null,"9.","Укажите все значения m, при которых ",null,null,null,null,null,null,null,null,null,null,null,null,null,null,null,null,null,null,null,null,null,null,null,null,null,null,null,null,null,null,null,null,null,null,null,null,3,{"$f":"IF(B14=4,1,0)","v":0},"27 и  -16","4,8","1  1/9","8","12,5"]
[null,"частное 48:(-3).",null,null,null,null,null,null,null,null,null,null,null,"верно равенство -m=|-m|",null,null,null,null,null,null,null,null,null,null,null,null,null,null,null,null,null,null,null,null,null,null,null,null,null,null,null,null,null,null,null,null,null,null,null,null,4,{"$f":"IF(B18=4,1,0)","v":0},"-27 и  -16","-4,8","- 1  1/9","-8","-12,5"]
[null,null,null,null,null,null,null,5,null,null,null,null,null,null,null,null,null,null,null,null,null,null,null,null,null,null,null,null,null,null,null,null,null,null,null,null,null,null,null,null,null,null,null,null,null,null,null,null,null,null,5,{"$f":"IF(H5=3,1,0)","v":0}]
[null,5,null,null,null,null,null,null,null,null,null,null,null,5,null,null,null,null,null,null,null,null,null,null,null,null,null,null,null,null,null,null,null,null,null,null,null,null,null,null,null,null,null,null,null,null,null,null,null,null,6,{"$f":"IF(H9=1,1,0)","v":0}]
[null,null,null,null,null,null,"6.","Решите уравнение",null,null,null,null,null,null,null,null,null,null,null,null,null,null,null,null,null,null,null,null,null,null,null,null,null,null,null,null,null,null,null,null,null,null,null,null,null,null,null,null,null,null,7,{"$f":"IF(H13=1,1,0)","v":0},"-6,3","-2","-6","m>0","a, b, c"]
["2.","Вычислите  -0,6*0,8.",null,null,null,null,null,null,null,null,null,null,"10.","Расположите в порядке убывания буквы, значения которых",null,null,null,null,null,null,null,null,null,null,null,null,null,null,null,null,null,null,null,null,null,null,null,null,null,null,null,null,null,null,null,null,null,null,null,null,8,{"$f":"IF(H17=4,1,0)","v":0},"6,3","2","6","m=>0","b, a, c"]
[null,null,null,null,null,null,null,5,null,null,null,null,null,"равны:",null,null,null,null,null,null,null,null,null,null,null,null,null,null,null,null,null,null,null,null,null,null,null,null,null,null,null,null,null,null,null,null,null,null,null,null,9,{"$f":"IF(N6=4,1,0)","v":0},"-18/35","5","4  2/3","m<0","c, b, a"]
[null,5,null,null,null,null,null,null,null,null,null,null,null,null,null,null,null,null,null,null,null,null,null,null,null,null,null,null,null,null,null,null,null,null,null,null,null,null,null,null,null,null,null,null,null,null,null,null,null,null,10,{"$f":"IF(N11=2,1,0)","v":0},"18/35","-5","-4  2/3 ","m<=0","b, c, a"]
[null,null,null,null,null,null,"7.","Найдите значение выражения",null,null,null,null,null,5,null,null,null,null,null,null,null,null,null,null,null,null,null,null,null,null,null,null,null,null,null,null,null,null,null,null,null,null,null,null,null,null,null,null,null,null,11,{"$f":"IF(O16=-36,1,0)","v":0}]
["3.","Вычислите",null,null,null,null,null,null,null,null,null,null,null,null,null,null,null,null,null,null,null,null,null,null,null,null,null,null,null,null,null,null,null,null,null,null,null,null,null,null,null,null,null,null,null,null,null,null,null,null,12,{"$f":"IF(O20=8,1,0)","v":0}]
[null,null,null,null,null,null,null,5,null,null,null,null,"11.","Пусть а=6 и х-число, противоположное а,",null,null,null,null,null,null,null,null,null,null,null,null,null,null,null,null,null,null,null,null,null,null,null,null,null,null,null,null,null,null,null,null,null,null,null,null,"сумма",{"$f":"SUM(AZ1:AZ12)","v":0}]
[null,5,null,null,null,null,null,null,null,null,null,null,null,"у-число, обратное а.Найдите значение выражения "]
[null,null,null,null,null,null,"8.","Найдите неизвестный член пропорции"]
["4.","Найдите значение выражения          при х = -2.",null,null,null,null,null,null,null,null,null,null,null,"Ответ:"]
[null,null,null,null,null,null,null,5]
[null,5,null,null,null,null,null,null,null,null,null,null,"12.","Найдите значение выражения"]
[]
[null,null,null,null,null,null,null,null,null,null,null,null,null,"Ответ:"]
[]
["Нажми кнопку, чтобы узнать результат",null,null,null,null,"РЕЗУЛЬТАТ"]
[]
[]
[]
[]
[]
[]
[]
[]
[]
[]
[]
[]
[]
[]
[]
[]
[]
[]
[]
[]
[]
[]
[null,null,null,null,null,null,{"$f":"IF(AZ13>10,\"ОТЛИЧНО!\",IF(AZ13>8,\"ХОРОШО!\",IF(AZ13>6,\"Удовлетворительно!\",\"Неудовлетворительно!\")))","v":"Неудовлетворительно!"}]

{"sheet":"Т13","index":13,"n_rows":44,"n_cols":57,"rows_kept":44,"cut":false,"hidden":false,"merged":[[0,0,0,16],[21,17,21,18],[21,12,21,16],[43,6,45,9]]}
["Тест 13. Преобразование буквенных выражений",null,null,null,null,null,null,null,null,null,null,null,null,null,null,null,null,null,null,null,null,null,null,null,null,null,null,null,null,null,null,null,null,null,null,null,null,null,null,null,null,null,null,null,null,null,null,null,null,null,1,{"$f":"IF(B6=3,1,0)","v":0},"c-6","10ab","-2x-2y","1","21,3"]
[null,null,null,null,null,null,null,null,null,null,null,null,null,null,null,null,null,null,null,null,null,null,null,null,null,null,null,null,null,null,null,null,null,null,null,null,null,null,null,null,null,null,null,null,null,null,null,null,null,null,2,{"$f":"IF(B10=2,1,0)","v":0},"6-c","-10ab","2y","-1","4,1"]
["1.","Раскройте скобки  -(с+6).",null,null,null,"5.","Найдите коэффициент произведения",null,null,null,null,"9.","Раскройте скобки и приведите подобные",null,null,null,null,null,null,null,null,null,null,null,null,null,null,null,null,null,null,null,null,null,null,null,null,null,null,null,null,null,null,null,null,null,null,null,null,null,3,{"$f":"IF(B15=4,1,0)","v":0},"-c-6","-3ab","2x","0","-21,3"]
[null,null,null,null,null,null,"7,1*(-3а)",null,null,null,null,null,"слагаемые",null,null,null,null,null,null,null,null,null,null,null,null,null,null,null,null,null,null,null,null,null,null,null,null,null,null,null,null,null,null,null,null,null,null,null,null,null,4,{"$f":"IF(B20=1,1,0)","v":0},"c+6","7*(a-b)","2x+2y","при d нет коэффициента","-10,1"]
[null,null,null,null,null,null,null,null,null,null,null,null,null,null,null,null,null,null,null,null,null,null,null,null,null,null,null,null,null,null,null,null,null,null,null,null,null,null,null,null,null,null,null,null,null,null,null,null,null,null,5,{"$f":"IF(G6=3,1,0)","v":0}]
[null,null,null,null,null,null,null,null,null,null,null,null,null,null,null,null,null,null,null,null,null,null,null,null,null,null,null,null,null,null,null,null,null,null,null,null,null,null,null,null,null,null,null,null,null,null,null,null,null,null,6,{"$f":"IF(G10=4,1,0)","v":0}]
[null,null,null,null,null,null,null,null,null,null,null,null,null,null,null,null,null,null,null,null,null,null,null,null,null,null,null,null,null,null,null,null,null,null,null,null,null,null,null,null,null,null,null,null,null,null,null,null,null,null,7,{"$f":"IF(G15=4,1,0)","v":0},"-6m-2n-8","-4x+4y","* = 4xy","b - 40","3x + y"]
["2.","Упростите  2а*(-5b) .",null,null,null,"6.","Раскройте скобки (3m-n-4)*(-2)",null,null,null,null,"10.","К  разности х  и  у  прибавить их удвоенную сумму",null,null,null,null,null,null,null,null,null,null,null,null,null,null,null,null,null,null,null,null,null,null,null,null,null,null,null,null,null,null,null,null,null,null,null,null,null,8,{"$f":"IF(G20=3,1,0)","v":0},"6m+2n+8","-4x+6y","* = -4xy","b ","3x - y"]
[null,null,null,null,null,null,null,null,null,null,null,null,null,null,null,null,null,null,null,null,null,null,null,null,null,null,null,null,null,null,null,null,null,null,null,null,null,null,null,null,null,null,null,null,null,null,null,null,null,null,9,{"$f":"IF(M6=2,1,0)","v":0},"3m-n+8","-10x+6y","* = 14xy","9b","x + 3y"]
[null,null,null,null,null,null,null,null,null,null,null,null,null,null,null,null,null,null,null,null,null,null,null,null,null,null,null,null,null,null,null,null,null,null,null,null,null,null,null,null,null,null,null,null,null,null,null,null,null,null,10,{"$f":"IF(M10=1,1,0)","v":0},"-6m+2n+8","-10x+4y","* = -14xy","9b - 40","x - 3y"]
[null,null,null,null,null,null,null,null,null,null,null,null,null,null,null,null,null,null,null,null,null,null,null,null,null,null,null,null,null,null,null,null,null,null,null,null,null,null,null,null,null,null,null,null,null,null,null,null,null,null,11,{"$f":"IF(N15=-5,1,0)","v":0}]
["3.","Найдите разность выражений  x+y и  -x-y",null,null,null,"7.","Приведите подобные слагаемые",null,null,null,null,"11.","Вычислите коэффициент произведения",null,null,null,null,null,null,null,null,null,null,null,null,null,null,null,null,null,null,null,null,null,null,null,null,null,null,null,null,null,null,null,null,null,null,null,null,null,12,{"$f":"IF(N20=1.1,1,0)","v":0}]
[null,null,null,null,null,null,null,null,null,null,null,null,null,null,null,null,null,null,null,null,null,null,null,null,null,null,null,null,null,null,null,null,null,null,null,null,null,null,null,null,null,null,null,null,null,null,null,null,null,null,"сумма",{"$f":"SUM(AZ1:AZ12)","v":0}]
[]
[null,null,null,null,null,null,null,null,null,null,null,null,"Ответ:"]
[]
["4.","Чему равен коэффициент при d    ",null,null,null,"8.","Равенство   9ху - * = -5ху  будет верным при",null,null,null,null,"12.","Найдите значение выражения"]
[null,"в выражении   3a+d-8",null,null,null,null,null,null,null,null,null,null,"при b=2,6;  c=3,7."]
[]
[null,null,null,null,null,null,null,null,null,null,null,null,"Ответ:"]
[]
[null,null,null,null,null,null,null,null,null,null,null,null,"Нажми кнопку, чтобы узнать результат",null,null,null,null,"РЕЗУЛЬТАТ"]
[]
[]
[]
[]
[]
[]
[]
[]
[]
[]
[]
[]
[]
[]
[]
[]
[]
[]
[]
[]
[]
[null,null,null,null,null,null,{"$f":"IF(AZ13>10,\"ОТЛИЧНО!\",IF(AZ13>8,\"ХОРОШО!\",IF(AZ13>6,\"Удовлетворительно!\",\"Неудовлетворительно!\")))","v":"Неудовлетворительно!"}]

{"sheet":"Т14","index":14,"n_rows":47,"n_cols":56,"rows_kept":47,"cut":false,"hidden":false,"merged":[[21,8,21,12],[21,13,21,14],[0,0,0,14],[46,6,48,9]]}
["Тест 14. Решение уравнений",null,null,null,null,null,null,null,null,null,null,null,null,null,null,null,null,null,null,null,null,null,null,null,null,null,null,null,null,null,null,null,null,null,null,null,null,null,null,null,null,null,null,null,null,null,null,null,null,null,1,{"$f":"IF(B5=2,1,0)","v":0},"1,9","-4х -3х = -3,6-2,1","1","среди приведенных чисел корней нет"]
[null,null,null,null,null,null,null,null,null,null,null,null,null,null,null,null,null,null,null,null,null,null,null,null,null,null,null,null,null,null,null,null,null,null,null,null,null,null,null,null,null,null,null,null,null,null,null,null,null,null,2,{"$f":"IF(B11=1,1,0)","v":0},"-1,9","-4х +3х = -3,6-2,1","-1","-2"]
["1.","Решите уравнение   -2х - 4,3 = -0,5",null,null,null,null,null,"4.","Какое из чисел  -2; -3; -4  является корнем уравнения",null,null,null,null,null,null,null,null,null,null,null,null,null,null,null,null,null,null,null,null,null,null,null,null,null,null,null,null,null,null,null,null,null,null,null,null,null,null,null,null,null,3,{"$f":"IF(B18=2,1,0)","v":0},"2,4","-4х-3х = 3,6-2,1","3","-3"]
[null,null,null,null,null,null,null,null,null,null,null,null,null,null,null,null,null,null,null,null,null,null,null,null,null,null,null,null,null,null,null,null,null,null,null,null,null,null,null,null,null,null,null,null,null,null,null,null,null,null,4,{"$f":"IF(I5=3,1,0)","v":0},"-2,4","-4х+3х = 3,6-2,1","-3","-4"]
[null,null,null,null,null,null,null,null,null,null,null,null,null,null,null,null,null,null,null,null,null,null,null,null,null,null,null,null,null,null,null,null,null,null,null,null,null,null,null,null,null,null,null,null,null,null,null,null,null,null,5,{"$f":"IF(J11=2.6,1,0)","v":0}]
[null,null,null,null,null,null,null,null,null,null,null,null,null,null,null,null,null,null,null,null,null,null,null,null,null,null,null,null,null,null,null,null,null,null,null,null,null,null,null,null,null,null,null,null,null,null,null,null,null,null,6,{"$f":"IF(J18=70,2,0)","v":0}]
["2.","Соберите в левой части уравнения  -4х + 3,6 = 3х - 2,1",null,null,null,null,null,"5.","Решите уравнение",null,null,null,null,null,null,null,null,null,null,null,null,null,null,null,null,null,null,null,null,null,null,null,null,null,null,null,null,null,null,null,null,null,null,null,null,null,null,null,null,null,"сумма",{"$f":"SUM(AZ1:AZ6)","v":0}]
[null,"все слагаемые, содержащие неизвестное, а в правой -"]
[null,"не содержащие неизвестное."]
[]
[null,null,null,null,null,null,null,null,"Ответ:"]
[]
["3.","Решите уравнение  7,2х + 5,4 = -3,6х - 5,4",null,null,null,null,null,"6.","Методом составления уравнения решите задачу:"]
[null,null,null,null,null,null,null,null,"В двух кусках было по х м ткани. После того как от одного куска"]
[null,null,null,null,null,null,null,null,"отрезали 10 м, а от второго 40 м, первый кусок оказался вдвое"]
[null,null,null,null,null,null,null,null,"длиннее второго. Найдите первоначальную длину ткани в каждом куске."]
[]
[null,null,null,null,null,null,null,null,"Ответ:",null,"м"]
[]
[]
[]
[null,null,null,null,null,null,null,null,"Нажми кнопку, чтобы узнать результат",null,null,null,null,"РЕЗУЛЬТАТ"]
[]
[]
[]
[]
[]
[]
[]
[]
[]
[]
[]
[]
[]
[]
[]
[]
[]
[]
[]
[]
[]
[]
[]
[]
[null,null,null,null,null,null,{"$f":"IF(AZ7>5,\"ОТЛИЧНО!\",IF(AZ7>4,\"ХОРОШО!\",IF(AZ7>3,\"Удовлетворительно!\",\"Неудовлетворительно!\")))","v":"Неудовлетворительно!"}]

{"sheet":"Итоговый","index":15,"n_rows":45,"n_cols":60,"rows_kept":45,"cut":false,"hidden":false,"merged":[[21,17,22,18],[44,6,46,10]]}
[null,null,null,null,null,null,null,null,null,null,null,null,null,null,null,null,null,null,null,null,null,null,null,null,null,null,null,null,null,null,null,null,null,null,null,null,null,null,null,null,null,null,null,null,null,null,null,null,null,null,1,{"$f":"IF(B4=3,1,0)","v":0},"4*3*7","2,7","185/300","A","18","64 км","2,24",0.3]
["1.","Разложение числа 84 на простые множители",null,null,null,null,"7.","Найдите произведение  0,8  и  -0,3.",null,null,null,null,null,"13.","Расположите в порядке убывания числа:",null,null,null,null,null,null,null,null,null,null,null,null,null,null,null,null,null,null,null,null,null,null,null,null,null,null,null,null,null,null,null,null,null,null,null,2,{"$f":"IF(B7=2,1,0)","v":0},"2*3*7","2,875","2/7","B","-18","1/64  км","2,4",0.25]
[null,"имеет вид:",null,null,null,null,null,null,null,null,null,null,null,null,null,null,null,null,null,null,null,null,null,null,null,null,null,null,null,null,null,null,null,null,null,null,null,null,null,null,null,null,null,null,null,null,null,null,null,null,3,{"$f":"IF(B11=3,1,0)","v":0},"2*2*3*7","2,78","37/60","C","-56","9 км","-2,4",0.2]
[null,null,null,null,null,null,null,null,null,null,null,null,null,null,null,null,null,null,null,null,null,null,null,null,null,null,null,null,null,null,null,null,null,null,null,null,null,null,null,null,null,null,null,null,null,null,null,null,null,null,4,{"$f":"IF(B16=4,1,0)","v":0},"3*28","0,875","19/60","D","56","54 км","-0,24",0.24]
[null,null,null,null,null,null,"8.","Округлите до десятых  0, 2498.",null,null,null,null,null,null,null,null,null,null,null,null,null,null,null,null,null,null,null,null,null,null,null,null,null,null,null,null,null,null,null,null,null,null,null,null,null,null,null,null,null,null,5,{"$f":"IF(B19=4,1,0)","v":0}]
["2.","Представьте число           в виде десятичной дроби ",null,null,null,null,null,null,null,null,null,null,null,null,null,null,null,null,null,null,null,null,null,null,null,null,null,null,null,null,null,null,null,null,null,null,null,null,null,null,null,null,null,null,null,null,null,null,null,null,6,{"$f":"IF(B23=1,1,0)","v":0},1,2,3,4,5,6,7,8]
[null,null,null,null,null,null,null,null,null,null,null,null,null,"14.","В классе 25 учеников, из них 16 девочек.",null,null,null,null,null,null,null,null,null,null,null,null,null,null,null,null,null,null,null,null,null,null,null,null,null,null,null,null,null,null,null,null,null,null,null,7,{"$f":"IF(H3=4,1,0)","v":0}]
[null,null,null,null,null,null,"9.","Длина дороги 45 км. Отремонтировали 18% дороги.",null,null,null,null,null,null,"Сколько процентов девочек в классе?",null,null,null,null,null,null,null,null,null,null,null,null,null,null,null,null,null,null,null,null,null,null,null,null,null,null,null,null,null,null,null,null,null,null,null,8,{"$f":"IF(H6=3,1,0)","v":0},"8,1 км","7/9 кв.см","24  см",1,"-4  3/7; 0,141; 0,1399; 0"]
["3.","Чему равна сумма чисел",null,null,null,null,null,"Сколько километров отремонтировали?",null,null,null,null,null,null,"Ответ:",null,null,null,null,null,null,null,null,null,null,null,null,null,null,null,null,null,null,null,null,null,null,null,null,null,null,null,null,null,null,null,null,null,null,null,9,{"$f":"IF(H10=1,1,0)","v":0},"27 км","4/9 кв.см","5  см",0.1,"-4  3/7; 0; 0,1399; 0,141"]
[null,"(Ответ дайте в виде несократимой дроби)",null,null,null,null,null,null,null,null,null,null,null,null,null,null,null,null,null,null,null,null,null,null,null,null,null,null,null,null,null,null,null,null,null,null,null,null,null,null,null,null,null,null,null,null,null,null,null,null,10,{"$f":"IF(H15=2,1,0)","v":0},"2,5 км","25/49 кв.см","0,2  см",2.5,"0,141; 0,1399; 0; -4  3/7"]
[null,null,null,null,null,null,null,null,null,null,null,null,null,"15.","Сплав состоит из олова и меди, масса которых",null,null,null,null,null,null,null,null,null,null,null,null,null,null,null,null,null,null,null,null,null,null,null,null,null,null,null,null,null,null,null,null,null,null,null,11,{"$f":"IF(H20=2,1,0)","v":0},"40 км","1  43/105 кв.см","0,5  см",10,"0,1399; 0,141; 0; -4  3/7"]
[null,null,null,null,null,null,"10.","Найдите площадь прямоугольника со сторонами",null,null,null,null,null,null,"относятся как 3 : 2. Какова масса сплава, если",null,null,null,null,null,null,null,null,null,null,null,null,null,null,null,null,null,null,null,null,null,null,null,null,null,null,null,null,null,null,null,null,null,null,null,12,{"$f":"IF(H23=4,1,0)","v":0}]
["4.","Какая из точек имеет координату, равную  -8 ?",null,null,null,null,null,null,null,null,null,null,null,null,"олова в нем 360 г?",null,null,null,null,null,null,null,null,null,null,null,null,null,null,null,null,null,null,null,null,null,null,null,null,null,null,null,null,null,null,null,null,null,null,null,13,{"$f":"IF(O5=3,1,0)","v":0},9,10,11,12,13]
[null,null,null,null,null,null,null,null,null,null,null,null,null,null,"Ответ:",null,null,null,null,null,null,null,null,null,null,null,null,null,null,null,null,null,null,null,null,null,null,null,null,null,null,null,null,null,null,null,null,null,null,null,14,{"$f":"IF(P9=64,1,0)","v":0}]
[null,null,null,null,null,null,null,null,null,null,null,null,null,null,null,null,null,null,null,null,null,null,null,null,null,null,null,null,null,null,null,null,null,null,null,null,null,null,null,null,null,null,null,null,null,null,null,null,null,null,15,{"$f":"IF(P14=600,1,0)","v":0}]
[null,null,null,null,null,null,null,null,null,null,null,null,null,"16.","Составив уравнение, решите задачу.",null,null,null,null,null,null,null,null,null,null,null,null,null,null,null,null,null,null,null,null,null,null,null,null,null,null,null,null,null,null,null,null,null,null,null,16,{"$f":"IF(P22=10,2,0)","v":0}]
[null,null,null,null,null,null,"11.","Найдите ширину прямоугольного параллелепипеда,",null,null,null,null,null,null,"На первой полке стояло х книг, а на второй -",null,null,null,null,null,null,null,null,null,null,null,null,null,null,null,null,null,null,null,null,null,null,null,null,null,null,null,null,null,null,null,null,null,null,null,"сумма",{"$f":"SUM(AZ1:AZ16)","v":0}]
["5.","Вычислите:  19 - (-37).",null,null,null,null,null,"если его длина             , высота 2,4 см, а объем ",null,null,null,null,null,null,"в 3 раза больше. После того, как со второй пол-"]
[null,null,null,null,null,null,null,null,null,null,null,null,null,null,"ки переставили на первую 10 книг, на обеих"]
[null,null,null,null,null,null,null,null,null,null,null,null,null,null,"полках книг стало поровну. Сколько книг"]
["6.","Турист прошел 24 км, что составляет      всего ",null,null,null,null,"12.","Найдите неизвестный член пропорции ",null,null,null,null,null,null,"на первой полке ?"]
[null,"его пути.Какое расстояние должен пройти турист?",null,null,null,null,null,"0,75:1,5 = 5:х.",null,null,null,null,null,null,"Ответ:",null,null,"РЕЗУЛЬТАТ"]
[]
[]
[]
[]
[]
[]
[]
[]
[]
[]
[]
[]
[]
[]
[]
[]
[]
[]
[]
[]
[]
[]
[null,null,null,null,null,null,{"$f":"IF(AZ17>14,\"ОТЛИЧНО!\",IF(AZ17>11,\"ХОРОШО!\",IF(AZ17>6,\"Удовлетворительно\",\"НЕУДОВЛЕТВОРИТЕЛЬНО!\")))","v":"НЕУДОВЛЕТВОРИТЕЛЬНО!"}]